[Event "Turkish Club Cup 2019"]
[Site "Konya"]
[Date "2019.07.18"]
[Round "5"]
[White "Koc, Azra Ece"]
[Black "Sen, Nehir"]
[Result "1-0"]
[ECO "B08"]
[WhiteElo "1527"]
[BlackElo "1307"]
[Annotator "NA"]
[PlyCount "41"]
[EventDate "2019.07.16"]
[EventType "team-tourn"]
[EventCountry "TUR"]
[SourceTitle "playchess.com"]
[Source "ChessBase"]
[SourceQuality "1"]
[TimeControl "5400+30"]

1. d4 {[%emt 0:00:30]} g6 {[%emt 0:00:30]} 2. Bf4 {[%emt 0:00:30]} Bg7 {[%emt 0:00:30]} 3. Nc3 {[%emt 0:00:00]} d6 {[%emt 0:00:30]} 4. e4 {[%emt 0:00:00]} c6 {[%emt 0:01:30]} 5. Nf3 {[%emt 0:00:30]} Nf6 {[%emt 0:01:30]} 6. Qd2 {[%emt 0:01:30]} O-O {[%emt 0:00:30]} 7. Bh6 {[%emt 0:01:30]} b5 {[%emt 0:01:30]} 8. a3 {[%emt 0:04:30]} Qa5 {[%emt 0:02:30]} 9. Bxg7 {[%emt 0:04:30]} Kxg7 {[%emt 0:00:30]} 10. Bd3 {[%emt 0:01:30]} a6 {[%emt 0:01:30]} 11. b4 {[%emt 0:07:30]} Qc7 {[%emt 0:01:30]} 12. e5 {[%emt 0:07:30]} Nfd7 {[%emt 0:11:30]} 13. Qe3 {[%emt 0:03:30]} Nb6 {[%emt 0:19:30]} 14. h4 {[%emt 0:11:30]} N8d7 {[%emt 0:12:30]} 15. h5 {[%emt 0:06:30]} Rh8 {[%emt 0:19:30]} 16. hxg6 {[%emt 0:04:30]} hxg6 {[%emt 0:00:30]} 17. Rxh8 {[%emt 0:00:30]} Kxh8 {[%emt 0:00:00]} 18. Qh6+ {[%emt 0:01:30]} Kg8 {[%emt 0:00:00]} 19. Bxg6 {[%emt 0:01:30]} fxg6 {[%emt 0:00:30]} 20. Qxg6+ {[%emt 0:00:00]} Kh8 {[%emt 0:00:30]} 21. Ng5 {[%emt 0:00:00]} 1-0

[Event "Turkish Club Cup 2019"]
[Site "Konya"]
[Date "2019.07.18"]
[Round "5"]
[White "Sancar, Alperen"]
[Black "Ince, Eray"]
[Result "0-1"]
[ECO "A48"]
[WhiteElo "1479"]
[BlackElo "1459"]
[Annotator "NA"]
[PlyCount "70"]
[EventDate "2019.07.16"]
[EventType "team-tourn"]
[EventCountry "TUR"]
[SourceTitle "playchess.com"]
[Source "ChessBase"]
[SourceQuality "1"]
[TimeControl "5400+30"]

1. d4 {[%emt 0:00:30]} g6 {[%emt 0:00:30]} 2. Bf4 {[%emt 0:00:30]} Bg7 {[%emt 0:00:00]} 3. Nf3 {[%emt 0:00:30]} d6 {[%emt 0:00:00]} 4. e3 {[%emt 0:00:30]} Nf6 {[%emt 0:01:30]} 5. Nbd2 {[%emt 0:01:30]} Nbd7 {[%emt 0:01:30]} 6. Bd3 {[%emt 0:04:30]} O-O {[%emt 0:00:30]} 7. c3 {[%emt 0:00:30]} Re8 {[%emt 0:00:00]} 8. Bg3 {[%emt 0:03:30]} e5 {[%emt 0:01:00]} 9. Bc2 {[%emt 0:09:30]} exd4 {[%emt 0:07:30]} 10. cxd4 {[%emt 0:00:00]} Nb6 {[%emt 0:00:30]} 11. O-O {[%emt 0:08:00]} Nh5 {[%emt 0:02:30]} 12. Bh4 {[%emt 0:12:30]} Bf6 {[%emt 0:02:30]} 13. Bxf6 {[%emt 0:00:30]} Nxf6 {[%emt 0:00:00]} 14. Rc1 {[%emt 0:00:00]} Bg4 {[%emt 0:13:00]} 15. h3 {[%emt 0:06:00]} Bxf3 {[%emt 0:00:30]} 16. Qxf3 {[%emt 0:01:30]} d5 {[%emt 0:00:30]} 17. Bb3 {[%emt 0:02:30]} c6 {[%emt 0:00:30]} 18. Bc2 {[%emt 0:01:30]} Qe7 {[%emt 0:01:30]} 19. Qe2 {[%emt 0:04:30]} Nh5 {[%emt 0:02:30]} 20. g4 {[%emt 0:05:30]} Nf4 {[%emt 0:02:30]} 21. Qf3 {[%emt 0:00:30]} Ne6 {[%emt 0:00:30]} 22. Rfe1 {[%emt 0:05:30]} Qb4 {[%emt 0:01:30]} 23. Nb3 {[%emt 0:02:30]} Nc4 {[%emt 0:00:00]} 24. Rb1 {[%emt 0:01:30]} Nxb2 {[%emt 0:09:00]} 25. Na1 {[%emt 0:04:30]} Nxd4 {[%emt 0:04:30]} 26. Qf6 {[%emt 0:01:30]} c5 {[%emt 0:00:30]} 27. Bb3 {[%emt 0:02:30]} Re6 {[%emt 0:00:30]} 28. Qf4 {[%emt 0:01:30]} Ne2+ {[%emt 0:03:30]} 29. Rxe2 {[%emt 0:00:30]} Qxf4 {[%emt 0:00:30]} 30. exf4 {[%emt 0:00:30]} Rxe2 {[%emt 0:00:30]} 31. Bxd5 {[%emt 0:00:00]} Rae8 {[%emt 0:00:30]} 32. Kf1 {[%emt 0:01:00]} Nd3 {[%emt 0:00:30]} 33. Bc4 {[%emt 0:00:00]} Re1+ {[%emt 0:00:30]} 34. Rxe1 {[%emt 0:00:00]} Rxe1+ {[%emt 0:00:30]} 35. Kg2 {[%emt 0:00:30]} Nxf4+ {[%emt 0:00:00]} 0-1

[Event "Turkish Club Cup 2019"]
[Site "Konya"]
[Date "2019.07.18"]
[Round "5"]
[White "Hekimoglu, Mihriban"]
[Black "Sahin, Hayrun Nisa"]
[Result "0-1"]
[ECO "A48"]
[WhiteElo "1440"]
[BlackElo "1772"]
[Annotator "NA RC"]
[PlyCount "128"]
[EventDate "2019.07.16"]
[EventType "team-tourn"]
[EventCountry "TUR"]
[SourceTitle "playchess.com"]
[Source "ChessBase"]
[SourceQuality "1"]
[TimeControl "5400+30"]

1. d4 {[%emt 0:00:30]} Nf6 {[%emt 0:00:30]} 2. Nf3 {[%emt 0:00:00]} g6 {[%emt 0:00:00]} 3. Bf4 {[%emt 0:01:00]} Bg7 {[%emt 0:00:00]} 4. e3 {[%emt 0:00:30]} O-O {[%emt 0:00:00]} 5. Be2 {[%emt 0:01:30]} d6 {[%emt 0:03:00]} 6. h3 c5 {[%emt 0:03:30]} 7. c3 {[%emt 0:13:00]} Qb6 {[%emt 0:01:30]} 8. Qd2 {[%emt 0:01:30]} Bf5 {[%emt 0:08:30]} 9. O-O {[%emt 0:03:30]} Ne4 {[%emt 0:05:30]} 10. Qc1 {[%emt 0:00:30]} Rc8 {[%emt 0:00:30]} 11. Nbd2 {[%emt 0:03:30]} cxd4 {[%emt 0:04:30]} 12. exd4 {[%emt 0:00:30]} Nc6 {[%emt 0:04:30]} 13. Nxe4 {[%emt 0:05:30]} Bxe4 {[%emt 0:02:30]} 14. Qd2 {[%emt 0:00:30]} Na5 {[%emt 0:05:30]} 15. Rfe1 {[%emt 0:07:30]} Rc7 {[%emt 0:12:30]} 16. b3 {[%emt 0:07:30]} Rac8 {[%emt 0:07:30]} 17. Rac1 {[%emt 0:01:30]} Bd5 {[%emt 0:00:30]} 18. Qe3 {[%emt 0:12:30]} Nc6 {[%emt 0:07:30]} 19. Ng5 {[%emt 0:12:30]} h6 {[%emt 0:02:30]} 20. Nf3 {[%emt 0:03:30]} g5 {[%emt 0:07:30]} 21. Bh2 {[%emt 0:02:30]} f5 {[%emt 0:03:14]} 22. Red1 {[%emt 0:04:10]} f4 {[%emt 0:03:32]} 23. Qd2 {[%emt 0:00:19]} Qa5 {[%emt 0:00:52]} 24. g3 {[%emt 0:06:31]} Bxf3 {[%emt 0:02:17]} 25. Bxf3 {[%emt 0:00:08]} Nxd4 {[%emt 0:01:27]} 26. Bg4 {[%emt 0:03:07]} fxg3 {[%emt 0:03:22]} 27. Bxg3 {[%emt 0:01:14]} Rxc3 {[%emt 0:01:51]} 28. Rxc3 {[%emt 0:02:13]} Qxc3 {[%emt 0:00:11]} 29. Qe3 {[%emt 0:01:15]} Rc7 {[%emt 0:00:57]} 30. Be6+ {[%emt 0:01:04]} Kf8 {[%emt 0:01:32]} 31. Qe4 {[%emt 0:01:14]} Nxe6 {[%emt 0:02:43]} 32. Qxe6 {[%emt 0:00:35]} Qf6 {[%emt 0:02:04]} 33. Rxd6 {[%emt 0:01:31]} exd6 {[%emt 0:01:11]} 34. Bxd6+ {[%emt 0:01:22]} Re7 {[%emt 0:00:20]} 35. Bxe7+ {[%emt 0:01:39]} Qxe7 {[%emt 0:00:04]} 36. Qc8+ {[%emt 0:01:00]} Kf7 {[%emt 0:00:10]} 37. Qc4+ {[%emt 0:00:16]} Kf6 {[%emt 0:01:14]} 38. Qd4+ {[%emt 0:00:13]} Kg6 {[%emt 0:01:31]} 39. Qd3+ {[%emt 0:00:17]} Kf6 {[%emt 0:00:56]} 40. Qd4+ {[%emt 0:00:11]} Qe5 {[%emt 0:00:53]} 41. Qd8+ {[%emt 0:00:14]} Kg6 {[%emt 0:01:09]} 42. Qd3+ {[%emt 0:01:10]} Qf5 {[%emt 0:00:11]} 43. Qd6+ {[%emt 0:00:15]} Bf6 {[%emt 0:00:48]} 44. Qf8 {[%emt 0:00:45]} Qxh3 {[%emt 0:00:30]} 45. Qg8+ {[%emt 0:00:42]} Bg7 {[%emt 0:01:12]} 46. Qe8+ {[%emt 0:00:18]} Kf6 {[%emt 0:00:17]} 47. Qd8+ {[%emt 0:00:10]} Kf7 {[%emt 0:00:24]} 48. Qd5+ {[%emt 0:00:18]} Qe6 {[%emt 0:00:52]} 49. Qxb7+ {[%emt 0:00:11]} Kg6 {[%emt 0:00:00]} 50. Qxa7 {[%emt 0:00:36]} Qe1+ {[%emt 0:00:22]} 51. Kg2 {[%emt 0:00:00]} Qe4+ {[%emt 0:00:35]} 52. Kg1 {[%emt 0:00:05]} Bd4 {[%emt 0:00:28]} 53. Qa6+ {[%emt 0:00:02]} Kh5 {[%emt 0:00:13]} 54. Qf1 {[%emt 0:01:15]} Qg4+ {[%emt 0:00:49]} 55. Kh1 {[%emt 0:00:07]} Qh4+ {[%emt 0:00:01]} 56. Kg2 {[%emt 0:01:02]} Be5 {[%emt 0:00:30]} 57. Qe2+ {[%emt 0:00:09]} Qg4+ {[%emt 0:00:31]} 58. Qxg4+ {[%emt 0:00:30]} Kxg4 {[%emt 0:00:00]} 59. b4 {[%emt 0:00:40]} Bc3 {[%emt 0:00:00]} 60. b5 {[%emt 0:00:11]} Ba5 {[%emt 0:00:00]} 61. f3+ {[%emt 0:01:26]} Kf4 {[%emt 0:00:00]} 62. a3 {[%emt 0:00:13]} Bb6 {[%emt 0:00:13]} 63. a4 {[%emt 0:00:06]} h5 {[%emt 0:00:03]} 64. Kh3 {[%emt 0:00:21]} Kxf3 {[%emt 0:00:16]} 0-1

[Event "Turkish Club Cup 2019"]
[Site "Konya"]
[Date "2019.07.18"]
[Round "5"]
[White "Yaman, Sila"]
[Black "Yalcin, Sudenaz"]
[Result "1/2-1/2"]
[ECO "E85"]
[WhiteElo "1381"]
[BlackElo "1371"]
[Annotator "NA"]
[PlyCount "60"]
[EventDate "2019.07.16"]
[EventType "team-tourn"]
[EventCountry "TUR"]
[SourceTitle "playchess.com"]
[Source "ChessBase"]
[SourceQuality "1"]
[TimeControl "5400+30"]

1. d4 {[%emt 0:00:30]} Nf6 {[%emt 0:00:30]} 2. c4 {[%emt 0:00:30]} d6 {[%emt 0:00:30]} 3. Nc3 {[%emt 0:00:30]} g6 {[%emt 0:00:00]} 4. e4 {[%emt 0:00:00]} Bg7 {[%emt 0:00:00]} 5. f3 {[%emt 0:00:00]} O-O {[%emt 0:00:00]} 6. Be3 {[%emt 0:00:00]} e5 {[%emt 0:01:00]} 7. d5 {[%emt 0:00:00]} Nbd7 {[%emt 0:00:30]} 8. Nge2 {[%emt 0:00:30]} Ne8 {[%emt 0:00:30]} 9. g4 {[%emt 0:07:30]} Nc5 {[%emt 0:06:30]} 10. Qd2 {[%emt 0:12:30]} a5 {[%emt 0:05:30]} 11. h4 {[%emt 0:05:30]} f6 {[%emt 0:10:30]} 12. Ng3 {[%emt 0:05:30]} Rf7 {[%emt 0:06:30]} 13. Be2 {[%emt 0:02:30]} Nd7 {[%emt 0:08:30]} 14. Bd3 {[%emt 0:07:30]} Bf8 {[%emt 0:07:30]} 15. g5 {[%emt 0:05:30]} Nc5 {[%emt 0:04:30]} 16. Bc2 {[%emt 0:04:30]} f5 {[%emt 0:06:30]} 17. Nge2 {[%emt 0:02:30]} f4 {[%emt 0:00:30]} 18. Bf2 {[%emt 0:01:30]} Ng7 {[%emt 0:00:30]} 19. O-O-O {[%emt 0:09:30]} b6 {[%emt 0:03:30]} 20. a4 {[%emt 0:03:30]} Ba6 {[%emt 0:01:30]} 21. b3 {[%emt 0:00:30]} Bb7 {[%emt 0:00:30]} 22. Kb2 {[%emt 0:03:30]} Na6 {[%emt 0:00:30]} 23. Rdg1 {[%emt 0:01:30]} Nb4 {[%emt 0:00:30]} 24. Bb1 {[%emt 0:01:30]} Nh5 {[%emt 0:01:30]} 25. Nc1 {[%emt 0:01:30]} Bc8 {[%emt 0:03:30]} 26. Nd3 {[%emt 0:00:30]} Nxd3+ {[%emt 0:00:00]} 27. Bxd3 {[%emt 0:00:30]} Bd7 {[%emt 0:00:00]} 28. Bf1 {[%emt 0:03:30]} Qc8 {[%emt 0:00:30]} 29. Be2 {[%emt 0:01:30]} Qd8 {[%emt 0:01:30]} 30. Qd1 {[%emt 0:00:00]} Qc8 {[%emt 0:00:00]} 1/2-1/2

[Event "Turkish Club Cup 2019"]
[Site "Konya"]
[Date "2019.07.18"]
[Round "5"]
[White "Canakay, Kerem"]
[Black "Kargi, Mert"]
[Result "0-1"]
[ECO "B31"]
[WhiteElo "1353"]
[BlackElo "1729"]
[Annotator "NA"]
[PlyCount "68"]
[EventDate "2019.07.16"]
[EventType "team-tourn"]
[EventCountry "TUR"]
[SourceTitle "playchess.com"]
[Source "ChessBase"]
[SourceQuality "1"]
[TimeControl "5400+30"]

1. e4 {[%emt 0:00:30]} c5 {[%emt 0:00:30]} 2. Nf3 {[%emt 0:00:30]} Nc6 {[%emt 0:00:00]} 3. Bb5 {[%emt 0:00:30]} g6 {[%emt 0:00:00]} 4. d4 {[%emt 0:00:30]} cxd4 {[%emt 0:01:30]} 5. Nxd4 {[%emt 0:00:00]} Bg7 {[%emt 0:00:30]} 6. Nf3 {[%emt 0:01:00]} Qa5+ {[%emt 0:00:30]} 7. Nc3 {[%emt 0:01:30]} Bxc3+ {[%emt 0:00:30]} 8. bxc3 {[%emt 0:00:30]} Qxb5 {[%emt 0:00:00]} 9. Nd4 {[%emt 0:01:30]} Qc4 {[%emt 0:05:00]} 10. Bb2 {[%emt 0:01:30]} e5 {[%emt 0:00:30]} 11. Nxc6 {[%emt 0:00:30]} Qxe4+ {[%emt 0:00:00]} 12. Qe2 {[%emt 0:00:30]} Qxe2+ {[%emt 0:00:00]} 13. Kxe2 {[%emt 0:00:30]} bxc6 {[%emt 0:00:30]} 14. Rhe1 {[%emt 0:00:30]} Ba6+ {[%emt 0:00:30]} 15. Kd2 {[%emt 0:00:30]} d6 {[%emt 0:00:30]} 16. Ba3 {[%emt 0:00:30]} O-O-O {[%emt 0:01:30]} 17. Rab1 {[%emt 0:00:30]} f5 {[%emt 0:00:30]} 18. Rb2 {[%emt 0:01:30]} Nf6 {[%emt 0:03:30]} 19. f3 {[%emt 0:00:30]} Kc7 {[%emt 0:00:30]} 20. Rbb1 {[%emt 0:01:30]} e4 {[%emt 0:00:30]} 21. Bb4 {[%emt 0:02:30]} Rb8 {[%emt 0:01:30]} 22. Rbd1 {[%emt 0:03:30]} c5 {[%emt 0:00:00]} 23. Ba3 {[%emt 0:00:30]} Rhe8 {[%emt 0:01:00]} 24. Rg1 {[%emt 0:09:30]} e3+ {[%emt 0:01:30]} 25. Kc1 {[%emt 0:00:30]} e2 {[%emt 0:00:30]} 26. Rde1 {[%emt 0:00:30]} Nd5 {[%emt 0:00:00]} 27. Bb2 {[%emt 0:00:30]} Bc4 {[%emt 0:00:00]} 28. a3 {[%emt 0:00:30]} Ne3 {[%emt 0:01:30]} 29. a4 {[%emt 0:00:30]} Nd1 {[%emt 0:00:00]} 30. Ba1 {[%emt 0:01:30]} Kb6 {[%emt 0:01:00]} 31. g4 {[%emt 0:02:30]} f4 {[%emt 0:00:00]} 32. Rg2 {[%emt 0:00:30]} Ka5 {[%emt 0:00:00]} 33. h4 {[%emt 0:02:30]} h6 {[%emt 0:00:30]} 34. h5 {[%emt 0:01:30]} g5 {[%emt 0:00:00]} 0-1

[Event "Turkish Club Cup 2019"]
[Site "Konya"]
[Date "2019.07.18"]
[Round "5"]
[White "Cankurtaran, Merve"]
[Black "Cingoz, Isil"]
[Result "1-0"]
[ECO "D03"]
[WhiteElo "1335"]
[BlackElo "1123"]
[Annotator "NA"]
[PlyCount "71"]
[EventDate "2019.07.16"]
[EventType "team-tourn"]
[EventCountry "TUR"]
[SourceTitle "playchess.com"]
[Source "ChessBase"]
[SourceQuality "1"]
[TimeControl "5400+30"]

1. d4 {[%emt 0:00:30]} e6 {[%emt 0:00:30]} 2. Nf3 {[%emt 0:00:00]} d5 {[%emt 0:00:30]} 3. c3 {[%emt 0:00:00]} Nf6 {[%emt 0:00:30]} 4. Bg5 {[%emt 0:01:30]} c5 {[%emt 0:02:30]} 5. e3 {[%emt 0:00:30]} h6 {[%emt 0:02:30]} 6. Bh4 {[%emt 0:00:30]} a6 {[%emt 0:01:30]} 7. Bd3 {[%emt 0:01:30]} c4 {[%emt 0:02:30]} 8. Bc2 {[%emt 0:00:30]} Be7 {[%emt 0:02:30]} 9. Nbd2 {[%emt 0:00:30]} Nbd7 {[%emt 0:01:30]} 10. O-O {[%emt 0:07:30]} b5 {[%emt 0:01:30]} 11. Ne5 {[%emt 0:06:30]} Nxe5 {[%emt 0:01:30]} 12. dxe5 {[%emt 0:00:30]} Nd7 {[%emt 0:00:00]} 13. Bxe7 {[%emt 0:00:30]} Qxe7 {[%emt 0:00:00]} 14. Qg4 {[%emt 0:04:30]} Qg5 {[%emt 0:01:30]} 15. Qxg5 {[%emt 0:01:30]} hxg5 {[%emt 0:00:30]} 16. f4 {[%emt 0:00:30]} g4 {[%emt 0:00:30]} 17. e4 {[%emt 0:02:30]} Bb7 {[%emt 0:07:30]} 18. exd5 {[%emt 0:02:30]} exd5 {[%emt 0:01:30]} 19. Bf5 {[%emt 0:01:30]} Nc5 {[%emt 0:02:30]} 20. Bxg4 {[%emt 0:01:30]} Rh4 {[%emt 0:04:30]} 21. Bf5 {[%emt 0:03:30]} g6 {[%emt 0:01:30]} 22. Bc2 {[%emt 0:02:30]} O-O-O {[%emt 0:00:00]} 23. f5 {[%emt 0:15:30]} gxf5 {[%emt 0:09:00]} 24. Bxf5+ {[%emt 0:02:30]} Kb8 {[%emt 0:01:30]} 25. Nf3 {[%emt 0:01:30]} Rh6 {[%emt 0:02:30]} 26. Nd4 {[%emt 0:02:30]} Rdh8 {[%emt 0:00:30]} 27. h3 {[%emt 0:05:30]} Rg8 {[%emt 0:04:30]} 28. Rae1 {[%emt 0:06:30]} Ne6 {[%emt 0:19:30]} 29. Re3 {[%emt 0:04:30]} Nd8 {[%emt 0:11:33]} 30. Ree1 {[%emt 0:07:34]} Ne6 {[%emt 0:00:30]} 31. Re3 {[%emt 0:00:30]} Nd8 {[%emt 0:00:30]} 32. Rf4 {[%emt 0:00:04]} Nc6 {[%emt 0:05:06]} 33. Bd7 {[%emt 0:01:57]} Rh7 {[%emt 0:09:42]} 34. Bxc6 {[%emt 0:01:06]} Bc8 {[%emt 0:03:22]} 35. Kh2 {[%emt 0:00:49]} Rhg7 {[%emt 0:00:00]} 36. Bxd5 {[%emt 0:00:15]} 1-0

[Event "Turkish Club Cup 2019"]
[Site "Konya"]
[Date "2019.07.18"]
[Round "5"]
[White "Haktanirlar, Zeren"]
[Black "Olmez, Sude"]
[Result "1/2-1/2"]
[ECO "D37"]
[WhiteElo "1294"]
[BlackElo "1180"]
[Annotator "NA RC"]
[PlyCount "110"]
[EventDate "2019.07.16"]
[EventType "team-tourn"]
[EventCountry "TUR"]
[SourceTitle "playchess.com"]
[Source "ChessBase"]
[SourceQuality "1"]
[TimeControl "5400+30"]

1. d4 {[%emt 0:00:30]} e6 {[%emt 0:00:30]} 2. c4 {[%emt 0:00:30]} d5 {[%emt 0:00:00]} 3. Nc3 {[%emt 0:00:00]} Nf6 {[%emt 0:00:00]} 4. Nf3 {[%emt 0:00:00]} Be7 {[%emt 0:02:30]} 5. Bf4 {[%emt 0:00:30]} Nbd7 {[%emt 0:02:30]} 6. e3 {[%emt 0:01:30]} a6 {[%emt 0:03:30]} 7. h3 {[%emt 0:02:30]} O-O {[%emt 0:00:30]} 8. c5 {[%emt 0:01:30]} Re8 {[%emt 0:05:30]} 9. Bd3 {[%emt 0:02:30]} Nf8 {[%emt 0:01:30]} 10. b4 {[%emt 0:01:30]} Bd7 {[%emt 0:03:30]} 11. O-O {[%emt 0:05:30]} Ng6 {[%emt 0:08:30]} 12. Bh2 {[%emt 0:00:30]} h6 {[%emt 0:03:30]} 13. Qc2 {[%emt 0:01:30]} Nf8 {[%emt 0:00:30]} 14. Ne5 {[%emt 0:01:30]} N6h7 {[%emt 0:02:30]} 15. a4 {[%emt 0:03:30]} f6 {[%emt 0:02:30]} 16. Ng6 {[%emt 0:02:30]} Ng5 {[%emt 0:04:30]} 17. f4 {[%emt 0:07:30]} Nf7 {[%emt 0:02:30]} 18. b5 {[%emt 0:11:30]} Nxg6 {[%emt 0:05:30]} 19. Bxg6 {[%emt 0:00:30]} f5 {[%emt 0:00:30]} 20. Bh5 {[%emt 0:04:30]} Rf8 {[%emt 0:02:30]} 21. Be2 {[%emt 0:05:30]} Qe8 {[%emt 0:04:30]} 22. bxa6 {[%emt 0:07:30]} bxa6 {[%emt 0:01:30]} 23. a5 {[%emt 0:01:30]} Bc6 {[%emt 0:00:30]} 24. Rab1 {[%emt 0:01:30]} Qd7 {[%emt 0:06:30]} 25. Bd3 {[%emt 0:01:30]} Nd8 {[%emt 0:04:30]} 26. Qe2 {[%emt 0:02:30]} Bb7 {[%emt 0:01:30]} 27. Rfc1 {[%emt 0:00:30]} Ra7 {[%emt 0:01:30]} 28. Rb2 {[%emt 0:05:30]} Nc6 {[%emt 0:04:30]} 29. Ra1 {[%emt 0:01:30]} Rb8 {[%emt 0:01:30]} 30. Qh5 {[%emt 0:03:30]} Kh7 {[%emt 0:02:30]} 31. Qf3 {[%emt 0:00:30]} g6 {[%emt 0:00:30]} 32. g4 {[%emt 0:02:30]} Rg8 {[%emt 0:02:30]} 33. Kf1 {[%emt 0:02:30]} Bd8 {[%emt 0:04:12]} 34. Bg3 {[%emt 0:00:53]} Ba8 {[%emt 0:04:03]} 35. Qe2 {[%emt 0:01:37]} Bb7 {[%emt 0:00:48]} 36. Be1 {[%emt 0:01:47]} Bf6 {[%emt 0:03:19]} 37. Qf3 {[%emt 0:03:34]} Qe7 {[%emt 0:04:30]} 38. Qg3 {[%emt 0:01:07]} Ba8 {[%emt 0:00:49]} 39. Ne2 {[%emt 0:01:14]} Rb8 {[%emt 0:01:52]} 40. Rxb8 {[%emt 0:00:33]} Nxb8 {[%emt 0:00:12]} 41. Rb1 {[%emt 0:00:48]} Rb7 {[%emt 0:00:49]} 42. Rxb7 {[%emt 0:02:48]} Bxb7 {[%emt 0:00:09]} 43. h4 {[%emt 0:00:28]} Qg7 {[%emt 0:02:20]} 44. g5 {[%emt 0:00:54]} Bd8 {[%emt 0:01:38]} 45. Ng1 {[%emt 0:01:01]} h5 {[%emt 0:01:09]} 46. Nf3 {[%emt 0:00:25]} c6 {[%emt 0:00:21]} 47. Qf2 {[%emt 0:02:35]} Qc7 {[%emt 0:01:13]} 48. Qd2 {[%emt 0:00:11]} Bc8 {[%emt 0:00:24]} 49. Qb4 {[%emt 0:01:33]} Qb7 {[%emt 0:00:26]} 50. Qxb7+ {[%emt 0:00:48]} Bxb7 {[%emt 0:00:06]} 51. Ne5 {[%emt 0:00:00]} Bc7 {[%emt 0:00:17]} 52. Ke2 {[%emt 0:00:30]} Kg7 {[%emt 0:01:16]} 53. Kf3 {[%emt 0:00:41]} Bxe5 {[%emt 0:00:20]} 54. fxe5 {[%emt 0:00:16]} Nd7 {[%emt 0:00:15]} 55. Kf4 {[%emt 0:01:16]} Kf7 {[%emt 0:00:24]} 1/2-1/2

[Event "Turkish Club Cup 2019"]
[Site "Konya"]
[Date "2019.07.18"]
[Round "5"]
[White "Dogan, Eylem Su"]
[Black "Eraslan, Ecem"]
[Result "1-0"]
[ECO "D60"]
[WhiteElo "1285"]
[BlackElo "1397"]
[Annotator "NA RC"]
[PlyCount "105"]
[EventDate "2019.07.16"]
[EventType "team-tourn"]
[EventCountry "TUR"]
[SourceTitle "playchess.com"]
[Source "ChessBase"]
[SourceQuality "1"]
[TimeControl "5400+30"]

1. d4 {[%emt 0:00:30]} d5 {[%emt 0:00:00]} 2. c4 {[%emt 0:00:30]} c6 {[%emt 0:00:00]} 3. Nc3 {[%emt 0:00:00]} Nf6 {[%emt 0:00:00]} 4. Bg5 {[%emt 0:00:00]} e6 {[%emt 0:00:00]} 5. Nf3 {[%emt 0:00:30]} Be7 {[%emt 0:00:30]} 6. e3 {[%emt 0:01:30]} Nbd7 {[%emt 0:01:30]} 7. Be2 {[%emt 0:00:30]} O-O {[%emt 0:00:30]} 8. O-O {[%emt 0:00:30]} h6 {[%emt 0:00:30]} 9. Bh4 {[%emt 0:02:30]} dxc4 {[%emt 0:02:30]} 10. Bxc4 {[%emt 0:01:30]} b5 {[%emt 0:09:30]} 11. Bb3 {[%emt 0:01:30]} Bb7 {[%emt 0:03:30]} 12. a3 {[%emt 0:09:30]} a6 {[%emt 0:06:30]} 13. Bc2 {[%emt 0:08:30]} c5 {[%emt 0:04:30]} 14. dxc5 {[%emt 0:03:30]} Nxc5 {[%emt 0:06:30]} 15. b4 {[%emt 0:05:30]} Nce4 {[%emt 0:07:30]} 16. Qxd8 {[%emt 0:12:30]} Bxd8 {[%emt 0:00:30]} 17. Nxe4 {[%emt 0:05:30]} Nxe4 {[%emt 0:11:30]} 18. Bxe4 {[%emt 0:06:30]} Bxe4 {[%emt 0:00:30]} 19. Bxd8 {[%emt 0:00:30]} Rfxd8 {[%emt 0:03:30]} 20. Nd4 {[%emt 0:03:30]} Bd5 {[%emt 0:06:30]} 21. Rac1 {[%emt 0:02:30]} Bc4 {[%emt 0:09:30]} 22. Rfd1 {[%emt 0:03:30]} Rd6 {[%emt 0:02:30]} 23. Nf3 {[%emt 0:03:30]} Rxd1+ {[%emt 0:05:32]} 24. Rxd1 {[%emt 0:00:30]} a5 {[%emt 0:00:37]} 25. Ne5 {[%emt 0:03:30]} axb4 {[%emt 0:04:43]} 26. axb4 {[%emt 0:00:30]} Rc8 {[%emt 0:06:18]} 27. h3 {[%emt 0:03:30]} f6 {[%emt 0:03:04]} 28. Nd7 {[%emt 0:02:17]} Rc6 {[%emt 0:03:33]} 29. Nc5 {[%emt 0:00:34]} Kf7 {[%emt 0:00:41]} 30. f3 {[%emt 0:00:29]} Kg6 {[%emt 0:01:11]} 31. Kf2 {[%emt 0:00:11]} Rc7 {[%emt 0:00:03]} 32. f4 {[%emt 0:03:49]} Re7 {[%emt 0:00:47]} 33. g4 {[%emt 0:04:09]} e5 {[%emt 0:00:49]} 34. f5+ {[%emt 0:01:01]} Kf7 {[%emt 0:00:30]} 35. Ne4 {[%emt 0:00:35]} Kf8 {[%emt 0:00:29]} 36. Rd8+ {[%emt 0:02:48]} Re8 {[%emt 0:00:01]} 37. Rxe8+ {[%emt 0:00:12]} Kxe8 {[%emt 0:00:02]} 38. Nd6+ {[%emt 0:00:00]} Kd7 {[%emt 0:00:50]} 39. Nxc4 {[%emt 0:01:47]} bxc4 {[%emt 0:00:04]} 40. Ke2 {[%emt 0:00:00]} Kc6 {[%emt 0:01:04]} 41. Kd2 {[%emt 0:00:00]} Kd5 {[%emt 0:00:15]} 42. Kc3 {[%emt 0:00:30]} Ke4 {[%emt 0:00:10]} 43. Kxc4 {[%emt 0:00:53]} Kxe3 {[%emt 0:00:31]} 44. b5 {[%emt 0:00:30]} Kf2 {[%emt 0:00:12]} 45. b6 {[%emt 0:00:01]} e4 {[%emt 0:00:11]} 46. b7 {[%emt 0:00:30]} e3 {[%emt 0:00:02]} 47. b8=Q {[%emt 0:00:12]} e2 {[%emt 0:00:10]} 48. Qf4+ {[%emt 0:01:14]} Kg2 {[%emt 0:00:38]} 49. Qe4+ {[%emt 0:03:40]} Kf2 {[%emt 0:00:03]} 50. Qf4+ {[%emt 0:01:02]} Kg2 {[%emt 0:00:03]} 51. Qe3 {[%emt 0:00:41]} Kf1 {[%emt 0:00:16]} 52. Qf3+ {[%emt 0:00:12]} Ke1 {[%emt 0:00:02]} 53. Kd3 {[%emt 0:00:15]} 1-0